[Event "Titled Tuesday Blitz April 18 Late 2023"]
[White "Cremisi, Daniel"]
[Black "Baskakov, Egor"]
[WhiteFideId "2089882"]
[BlackFideId "24197866"]
[WhiteElo "2172"]
[BlackElo "2212"]
[Result "0-1"]
[Round "02"]
[TimeControl "180+2"]
[Date "2023.04.18"]
[WhiteClock "0:00:45"]
[BlackClock "0:00:17"]

1. d4 {[%clk 0:03:00]}  Nf6 {[%clk 0:02:59]} 2. c4 {[%clk 0:03:00]}  e6 {[%clk 0:02:59]} 3. Nf3 {[%clk 0:03:00]}  d5 {[%clk 0:03:00]} 4. Nc3 {[%clk 0:03:00]}  Ne4 {[%clk 0:03:00]} 5. Qc2 {[%clk 0:02:43]}  f5 {[%clk 0:03:00]} 6. cxd5 {[%clk 0:02:42]}  exd5 {[%clk 0:03:00]} 7. Bf4 {[%clk 0:02:43]}  c6 {[%clk 0:02:59]} 8. e3 {[%clk 0:02:38]}  Be7 {[%clk 0:02:57]} 9. Bd3 {[%clk 0:02:38]}  O-O {[%clk 0:02:57]} 10. O-O {[%clk 0:02:38]}  Be6 {[%clk 0:02:57]} 11. Ne5 {[%clk 0:02:38]}  Nd7 {[%clk 0:02:58]} 12. Nxd7 {[%clk 0:02:36]}  Qxd7 {[%clk 0:02:59]} 13. f3 {[%clk 0:02:36]}  Nxc3 {[%clk 0:02:58]} 14. bxc3 {[%clk 0:02:36]}  Bd6 {[%clk 0:02:57]} 15. Bxd6 {[%clk 0:02:34]}  Qxd6 {[%clk 0:02:58]} 16. e4 {[%clk 0:02:35]}  fxe4 {[%clk 0:02:58]} 17. fxe4 {[%clk 0:02:34]}  dxe4 {[%clk 0:02:58]} 18. Bxe4 {[%clk 0:02:34]}  h6 {[%clk 0:02:58]} 19. Rae1 {[%clk 0:02:25]}  Bc4 {[%clk 0:02:54]} 20. Bh7+ {[%clk 0:02:21]}  Kh8 {[%clk 0:02:53]} 21. Bd3 {[%clk 0:02:22]}  Qd5 {[%clk 0:02:43]} 22. Bxc4 {[%clk 0:02:20]}  Qxc4 {[%clk 0:02:44]} 23. Rxf8+ {[%clk 0:02:10]}  Rxf8 {[%clk 0:02:42]} 24. h3 {[%clk 0:02:10]}  Qd5 {[%clk 0:02:34]} 25. Qe2 {[%clk 0:02:09]}  c5 {[%clk 0:02:27]} 26. Qe7 {[%clk 0:02:08]}  Rc8 {[%clk 0:02:25]} 27. Re5 {[%clk 0:01:56]}  Qxa2 {[%clk 0:02:25]} 28. Rxc5 {[%clk 0:01:56]}  Rxc5 {[%clk 0:01:58]} 29. Qxc5 {[%clk 0:01:56]}  Qb1+ {[%clk 0:01:58]} 30. Kh2 {[%clk 0:01:55]}  b6 {[%clk 0:01:59]} 31. Qe5 {[%clk 0:01:51]}  Qg6 {[%clk 0:01:47]} 32. d5 {[%clk 0:01:51]}  Qf7 {[%clk 0:01:43]} 33. d6 {[%clk 0:01:50]}  a5 {[%clk 0:01:34]} 34. Qd4 {[%clk 0:01:47]}  Qd7 {[%clk 0:01:30]} 35. Qxb6 {[%clk 0:01:46]}  Qf5 {[%clk 0:01:19]} 36. Qd4 {[%clk 0:01:45]}  Qd7 {[%clk 0:01:20]} 37. Qe4 {[%clk 0:01:30]}  a4 {[%clk 0:01:15]} 38. Qe7 {[%clk 0:01:28]}  Qf5 {[%clk 0:01:10]} 39. d7 {[%clk 0:01:27]}  Qf4+ {[%clk 0:01:10]} 40. Kg1 {[%clk 0:01:26]}  Qc1+ {[%clk 0:01:10]} 41. Kf2 {[%clk 0:01:27]}  Qf4+ {[%clk 0:01:09]} 42. Ke2 {[%clk 0:01:27]}  Qc4+ {[%clk 0:01:08]} 43. Kd2 {[%clk 0:01:26]}  Qf4+ {[%clk 0:01:03]} 44. Kc2 {[%clk 0:01:25]}  Qf2+ {[%clk 0:01:02]} 45. Kb1 {[%clk 0:01:24]}  Qf1+ {[%clk 0:00:59]} 46. Kb2 {[%clk 0:01:22]}  Qb5+ {[%clk 0:00:57]} 47. Kc2 {[%clk 0:01:16]}  Qf5+ {[%clk 0:00:51]} 48. Kd2 {[%clk 0:01:16]}  Qf4+ {[%clk 0:00:42]} 49. Kd3 {[%clk 0:01:16]}  Qf1+ {[%clk 0:00:39]} 50. Kd4 {[%clk 0:01:16]}  Qf4+ {[%clk 0:00:36]} 51. Kc5 {[%clk 0:01:14]}  Qc7+ {[%clk 0:00:35]} 52. Kd5 {[%clk 0:01:11]}  Qb7+ {[%clk 0:00:35]} 53. Ke6 {[%clk 0:01:11]}  Qb3+ {[%clk 0:00:27]} 54. Kf5 {[%clk 0:01:01]}  Qd5+ {[%clk 0:00:27]} 55. Kg6 {[%clk 0:00:56]}  Qxg2+ {[%clk 0:00:20]} 56. Kf7 {[%clk 0:00:56]}  Qd5+ {[%clk 0:00:18]} 57. Kf8 {[%clk 0:00:45]}  Qg8# {[%clk 0:00:17]} 0-1


[Site "https://www.chess.com"]

[Event "Titled Tuesday Blitz April 18 Late 2023"]
[White "Quesada Perez, Yasser"]
[Black "Bilan, Danila"]
[WhiteFideId "3509362"]
[BlackFideId "24161918"]
[WhiteElo "2496"]
[BlackElo "2182"]
[Result "1-0"]
[Round "02"]
[TimeControl "180+2"]
[Date "2023.04.18"]
[WhiteClock "0:00:18"]
[BlackClock "0:00:02"]

1. d4 {[%clk 0:03:00]}  d5 {[%clk 0:02:58]} 2. Bf4 {[%clk 0:03:00]}  Nf6 {[%clk 0:02:58]} 3. e3 {[%clk 0:03:00]}  c5 {[%clk 0:02:58]} 4. Nf3 {[%clk 0:02:59]}  Nc6 {[%clk 0:02:58]} 5. Nbd2 {[%clk 0:02:59]}  cxd4 {[%clk 0:02:58]} 6. exd4 {[%clk 0:03:00]}  Bg4 {[%clk 0:02:55]} 7. c3 {[%clk 0:02:59]}  e6 {[%clk 0:02:53]} 8. Qb3 {[%clk 0:02:59]}  Qc8 {[%clk 0:02:53]} 9. Bd3 {[%clk 0:02:53]}  Be7 {[%clk 0:02:50]} 10. O-O {[%clk 0:02:46]}  O-O {[%clk 0:02:48]} 11. Rae1 {[%clk 0:02:46]}  Bh5 {[%clk 0:02:44]} 12. h3 {[%clk 0:02:35]}  Bg6 {[%clk 0:02:36]} 13. Bxg6 {[%clk 0:02:34]}  hxg6 {[%clk 0:02:37]} 14. Ne5 {[%clk 0:02:18]}  a6 {[%clk 0:02:31]} 15. Qd1 {[%clk 0:02:04]}  b5 {[%clk 0:02:26]} 16. a3 {[%clk 0:02:04]}  a5 {[%clk 0:02:22]} 17. Ndf3 {[%clk 0:02:03]}  b4 {[%clk 0:02:14]} 18. axb4 {[%clk 0:01:55]}  axb4 {[%clk 0:02:15]} 19. Nxc6 {[%clk 0:01:51]}  Qxc6 {[%clk 0:02:16]} 20. Ne5 {[%clk 0:01:52]}  Qb5 {[%clk 0:02:04]} 21. Re3 {[%clk 0:01:47]}  bxc3 {[%clk 0:01:47]} 22. bxc3 {[%clk 0:01:48]}  Ra3 {[%clk 0:01:43]} 23. Bg5 {[%clk 0:01:44]}  Rfa8 {[%clk 0:01:28]} 24. Rfe1 {[%clk 0:01:33]}  Qb2 {[%clk 0:00:48]} 25. Qf3 {[%clk 0:01:29]}  Ra1 {[%clk 0:00:40]} 26. Nc6 {[%clk 0:01:23]}  Rxe1+ {[%clk 0:00:34]} 27. Rxe1 {[%clk 0:01:23]}  Qb7 {[%clk 0:00:25]} 28. Nxe7+ {[%clk 0:01:20]}  Qxe7 {[%clk 0:00:25]} 29. c4 {[%clk 0:01:18]}  Qb4 {[%clk 0:00:21]} 30. Rc1 {[%clk 0:01:11]}  Ne4 {[%clk 0:00:20]} 31. Be3 {[%clk 0:01:09]}  Nd2 {[%clk 0:00:14]} 32. Bxd2 {[%clk 0:01:00]}  Qxd2 {[%clk 0:00:15]} 33. Rd1 {[%clk 0:01:00]}  Qa5 {[%clk 0:00:09]} 34. c5 {[%clk 0:00:58]}  Qa4 {[%clk 0:00:09]} 35. Rd3 {[%clk 0:00:51]}  Qa1+ {[%clk 0:00:08]} 36. Kh2 {[%clk 0:00:49]}  Ra4 {[%clk 0:00:07]} 37. Qf4 {[%clk 0:00:46]}  Rc4 {[%clk 0:00:05]} 38. Rf3 {[%clk 0:00:39]}  Qa7 {[%clk 0:00:04]} 39. h4 {[%clk 0:00:35]}  f6 {[%clk 0:00:02]} 40. g3 {[%clk 0:00:25]}  Qf7 {[%clk 0:00:02]} 41. Qb8+ {[%clk 0:00:22]}  Kh7 {[%clk 0:00:03]} 42. Rf4 {[%clk 0:00:21]}  Qd7 {[%clk 0:00:02]} 43. Qb1 {[%clk 0:00:18]} 1-0


[Site "https://www.chess.com"]

[Event "Titled Tuesday Blitz April 18 Late 2023"]
[White "Kowalski, Igor"]
[Black "koncheto"]
[WhiteFideId "1172468"]
[WhiteElo "2392"]
[BlackElo "2542"]
[Result "1-0"]
[Round "02"]
[TimeControl "180+2"]
[Date "2023.04.18"]
[WhiteClock "0:00:51"]
[BlackClock "0:00:04"]

1. Nf3 {[%clk 0:03:00]}  Nf6 {[%clk 0:03:00]} 2. d4 {[%clk 0:03:01]}  e6 {[%clk 0:03:00]} 3. Bf4 {[%clk 0:02:59]}  c5 {[%clk 0:03:01]} 4. c3 {[%clk 0:02:59]}  d5 {[%clk 0:03:01]} 5. Nbd2 {[%clk 0:02:59]}  Bd6 {[%clk 0:03:01]} 6. Bg3 {[%clk 0:02:58]}  Qc7 {[%clk 0:03:02]} 7. e3 {[%clk 0:02:56]}  Nbd7 {[%clk 0:03:02]} 8. Bb5 {[%clk 0:02:54]}  O-O {[%clk 0:03:01]} 9. Bxd7 {[%clk 0:02:49]}  Nxd7 {[%clk 0:03:01]} 10. Bxd6 {[%clk 0:02:49]}  Qxd6 {[%clk 0:03:01]} 11. O-O {[%clk 0:02:49]}  e5 {[%clk 0:03:00]} 12. dxe5 {[%clk 0:02:47]}  Nxe5 {[%clk 0:03:01]} 13. Qa4 {[%clk 0:02:45]}  Bd7 {[%clk 0:02:48]} 14. Qf4 {[%clk 0:02:44]}  Rfe8 {[%clk 0:02:42]} 15. Rad1 {[%clk 0:02:43]}  Bc6 {[%clk 0:02:32]} 16. Nxe5 {[%clk 0:02:29]}  Qxe5 {[%clk 0:02:26]} 17. Qxe5 {[%clk 0:02:29]}  Rxe5 {[%clk 0:02:27]} 18. Rfe1 {[%clk 0:02:28]}  Kf8 {[%clk 0:02:17]} 19. f3 {[%clk 0:02:11]}  Rd8 {[%clk 0:02:13]} 20. Kf2 {[%clk 0:02:11]}  b6 {[%clk 0:02:13]} 21. b3 {[%clk 0:02:08]}  h5 {[%clk 0:01:56]} 22. h4 {[%clk 0:01:50]}  f6 {[%clk 0:01:42]} 23. Nf1 {[%clk 0:01:48]}  g5 {[%clk 0:01:39]} 24. Ng3 {[%clk 0:01:44]}  gxh4 {[%clk 0:01:09]} 25. Ne2 {[%clk 0:01:44]}  Rde8 {[%clk 0:01:10]} 26. Nf4 {[%clk 0:01:44]}  Kg7 {[%clk 0:01:01]} 27. c4 {[%clk 0:01:16]}  d4 {[%clk 0:00:36]} 28. e4 {[%clk 0:00:55]}  Kh6 {[%clk 0:00:19]} 29. Nd3 {[%clk 0:00:52]}  R5e7 {[%clk 0:00:16]} 30. Rh1 {[%clk 0:00:53]}  Kg5 {[%clk 0:00:03]} 31. Rh2 {[%clk 0:00:52]}  f5 {[%clk 0:00:03]} 32. e5 {[%clk 0:00:52]}  f4 {[%clk 0:00:02]} 33. Rdh1 {[%clk 0:00:52]}  Rxe5 {[%clk 0:00:03]} 34. Nxe5 {[%clk 0:00:52]}  Rxe5 {[%clk 0:00:03]} 35. Rxh4 {[%clk 0:00:53]}  d3 {[%clk 0:00:03]} 36. Rxh5+ {[%clk 0:00:53]}  Kf6 {[%clk 0:00:04]} 37. Rh6+ {[%clk 0:00:52]}  Kf5 {[%clk 0:00:04]} 38. R1h5# {[%clk 0:00:51]} 1-0


[Site "https://www.chess.com"]

[Event "Titled Tuesday Blitz April 18 Late 2023"]
[White "angelgab3"]
[Black "Smirnov, Pavel"]
[BlackFideId "4123425"]
[WhiteElo "2538"]
[BlackElo "2519"]
[Result "0-1"]
[Round "02"]
[TimeControl "180+2"]
[Date "2023.04.18"]
[WhiteClock "0:00:04"]
[BlackClock "0:00:06"]

1. e4 {[%clk 0:03:00]}  e5 {[%clk 0:02:59]} 2. Nf3 {[%clk 0:03:01]}  Nc6 {[%clk 0:03:00]} 3. Bb5 {[%clk 0:03:02]}  a6 {[%clk 0:03:00]} 4. Ba4 {[%clk 0:03:02]}  Nf6 {[%clk 0:02:59]} 5. O-O {[%clk 0:03:03]}  Be7 {[%clk 0:03:00]} 6. Re1 {[%clk 0:03:03]}  b5 {[%clk 0:03:00]} 7. Bb3 {[%clk 0:03:03]}  O-O {[%clk 0:03:01]} 8. a4 {[%clk 0:03:03]}  b4 {[%clk 0:03:01]} 9. d4 {[%clk 0:03:02]}  d6 {[%clk 0:03:02]} 10. dxe5 {[%clk 0:03:01]}  Nxe5 {[%clk 0:03:03]} 11. Nxe5 {[%clk 0:03:02]}  dxe5 {[%clk 0:03:03]} 12. Qe2 {[%clk 0:03:00]}  Bc5 {[%clk 0:03:03]} 13. Be3 {[%clk 0:02:53]}  Bd4 {[%clk 0:03:03]} 14. Nd2 {[%clk 0:02:32]}  Bxb2 {[%clk 0:02:52]} 15. Rad1 {[%clk 0:02:30]}  Qe7 {[%clk 0:02:51]} 16. Qc4 {[%clk 0:02:17]}  Be6 {[%clk 0:02:47]} 17. Qc5 {[%clk 0:02:17]}  Qxc5 {[%clk 0:02:40]} 18. Bxc5 {[%clk 0:02:18]}  Rfb8 {[%clk 0:02:39]} 19. Bxe6 {[%clk 0:01:55]}  fxe6 {[%clk 0:02:40]} 20. Nb3 {[%clk 0:01:55]}  Bc3 {[%clk 0:02:38]} 21. Re3 {[%clk 0:01:53]}  Rd8 {[%clk 0:02:39]} 22. Rdd3 {[%clk 0:01:48]}  Rxd3 {[%clk 0:02:36]} 23. Rxd3 {[%clk 0:01:48]}  Nxe4 {[%clk 0:02:36]} 24. Rd7 {[%clk 0:01:49]}  Rc8 {[%clk 0:02:29]} 25. Re7 {[%clk 0:01:40]}  Nxc5 {[%clk 0:01:14]} 26. Nxc5 {[%clk 0:01:41]}  Rd8 {[%clk 0:01:14]} 27. g3 {[%clk 0:01:41]}  Rd2 {[%clk 0:01:12]} 28. Nxe6 {[%clk 0:01:41]}  Rxc2 {[%clk 0:01:12]} 29. Rxg7+ {[%clk 0:01:41]}  Kh8 {[%clk 0:01:12]} 30. Rxc7 {[%clk 0:01:42]}  h5 {[%clk 0:01:11]} 31. Rb7 {[%clk 0:01:35]}  a5 {[%clk 0:01:04]} 32. Nc5 {[%clk 0:01:05]}  Bd4 {[%clk 0:01:01]} 33. Ne4 {[%clk 0:00:59]}  Rc6 {[%clk 0:00:52]} 34. h3 {[%clk 0:00:51]}  Kg8 {[%clk 0:00:34]} 35. g4 {[%clk 0:00:42]}  hxg4 {[%clk 0:00:35]} 36. hxg4 {[%clk 0:00:43]}  Rb6 {[%clk 0:00:27]} 37. Rxb6 {[%clk 0:00:42]}  Bxb6 {[%clk 0:00:27]} 38. Kf1 {[%clk 0:00:26]}  b3 {[%clk 0:00:23]} 39. Nd2 {[%clk 0:00:26]}  b2 {[%clk 0:00:23]} 40. f3 {[%clk 0:00:16]}  Be3 {[%clk 0:00:19]} 41. Nb1 {[%clk 0:00:15]}  Kf7 {[%clk 0:00:19]} 42. Ke2 {[%clk 0:00:15]}  Bd4 {[%clk 0:00:17]} 43. Kd1 {[%clk 0:00:13]}  Kg6 {[%clk 0:00:16]} 44. Kc2 {[%clk 0:00:13]}  Kg5 {[%clk 0:00:16]} 45. Nd2 {[%clk 0:00:13]}  Kf4 {[%clk 0:00:16]} 46. Nc4 {[%clk 0:00:12]}  Kxf3 {[%clk 0:00:13]} 47. g5 {[%clk 0:00:13]}  e4 {[%clk 0:00:13]} 48. Nxa5 {[%clk 0:00:05]}  e3 {[%clk 0:00:11]} 49. Nb3 {[%clk 0:00:06]}  Bc3 {[%clk 0:00:08]} 50. Nc5 {[%clk 0:00:03]}  e2 {[%clk 0:00:07]} 51. Nd3 {[%clk 0:00:04]}  Ke3 {[%clk 0:00:06]} 52. g6 {[%clk 0:00:04]}  b1=Q+ {[%clk 0:00:06]} 0-1


[Site "https://www.chess.com"]

[Event "Titled Tuesday Blitz April 18 Late 2023"]
[White "Remolar Gallen, Jose"]
[Black "Boruchovsky, Avital"]
[WhiteFideId "2215187"]
[BlackFideId "2800055"]
[WhiteElo "2223"]
[BlackElo "2450"]
[Result "0-1"]
[Round "02"]
[TimeControl "180+2"]
[Date "2023.04.18"]
[WhiteClock "0:00:08"]
[BlackClock "0:00:49"]

1. d4 {[%clk 0:01:52]}  Nf6 {[%clk 0:02:58]} 2. c4 {[%clk 0:01:52]}  d6 {[%clk 0:02:58]} 3. Nc3 {[%clk 0:01:52]}  Nbd7 {[%clk 0:02:57]} 4. Nf3 {[%clk 0:01:50]}  e5 {[%clk 0:02:57]} 5. e4 {[%clk 0:01:50]}  g6 {[%clk 0:02:56]} 6. g3 {[%clk 0:01:49]}  Bg7 {[%clk 0:02:56]} 7. Bg2 {[%clk 0:01:50]}  O-O {[%clk 0:02:56]} 8. O-O {[%clk 0:01:51]}  c6 {[%clk 0:02:56]} 9. h3 {[%clk 0:01:51]}  Qc7 {[%clk 0:02:54]} 10. Re1 {[%clk 0:01:51]}  a5 {[%clk 0:02:50]} 11. Be3 {[%clk 0:01:51]}  Re8 {[%clk 0:02:49]} 12. Qc2 {[%clk 0:01:51]}  a4 {[%clk 0:02:46]} 13. Rad1 {[%clk 0:01:51]}  exd4 {[%clk 0:02:46]} 14. Nxd4 {[%clk 0:01:51]}  Nc5 {[%clk 0:02:35]} 15. b4 {[%clk 0:01:45]}  axb3 {[%clk 0:02:34]} 16. axb3 {[%clk 0:01:46]}  h6 {[%clk 0:02:34]} 17. b4 {[%clk 0:01:37]}  Ne6 {[%clk 0:02:33]} 18. Nb3 {[%clk 0:01:37]}  Ra4 {[%clk 0:02:16]} 19. Qd2 {[%clk 0:01:36]}  Ng5 {[%clk 0:02:07]} 20. Nxa4 {[%clk 0:01:33]}  Nfxe4 {[%clk 0:02:03]} 21. Bb6 {[%clk 0:01:19]}  Qd7 {[%clk 0:01:54]} 22. Qf4 {[%clk 0:01:17]}  Be5 {[%clk 0:01:44]} 23. Qh4 {[%clk 0:01:13]}  Bf6 {[%clk 0:01:29]} 24. Nac5 {[%clk 0:01:08]}  Nxc5 {[%clk 0:01:20]} 25. Nxc5 {[%clk 0:01:07]}  Rxe1+ {[%clk 0:01:18]} 26. Rxe1 {[%clk 0:01:07]}  dxc5 {[%clk 0:01:18]} 27. Qf4 {[%clk 0:00:59]}  Bc3 {[%clk 0:01:08]} 28. Rc1 {[%clk 0:00:36]}  Bd2 {[%clk 0:01:03]} 29. Rd1 {[%clk 0:00:26]}  Bxf4 {[%clk 0:01:03]} 30. Rxd7 {[%clk 0:00:26]}  Bxd7 {[%clk 0:01:03]} 31. gxf4 {[%clk 0:00:24]}  Nxh3+ {[%clk 0:01:03]} 32. Bxh3 {[%clk 0:00:13]}  Bxh3 {[%clk 0:01:04]} 33. Bxc5 {[%clk 0:00:10]}  Be6 {[%clk 0:01:04]} 34. b5 {[%clk 0:00:10]}  Bxc4 {[%clk 0:01:04]} 35. bxc6 {[%clk 0:00:10]}  bxc6 {[%clk 0:01:04]} 36. Kh2 {[%clk 0:00:11]}  f6 {[%clk 0:01:02]} 37. Kg3 {[%clk 0:00:12]}  Kf7 {[%clk 0:01:02]} 38. Kf3 {[%clk 0:00:11]}  Ke6 {[%clk 0:01:01]} 39. Ke3 {[%clk 0:00:11]}  Kf5 {[%clk 0:01:00]} 40. Kf3 {[%clk 0:00:10]}  Bd5+ {[%clk 0:00:59]} 41. Kg3 {[%clk 0:00:10]}  Ke4 {[%clk 0:00:56]} 42. Bf8 {[%clk 0:00:10]}  h5 {[%clk 0:00:56]} 43. Bg7 {[%clk 0:00:10]}  f5 {[%clk 0:00:52]} 44. Be5 {[%clk 0:00:11]}  c5 {[%clk 0:00:52]} 45. Kh4 {[%clk 0:00:12]}  c4 {[%clk 0:00:50]} 46. Kg5 {[%clk 0:00:12]}  Bf7 {[%clk 0:00:50]} 47. Kf6 {[%clk 0:00:08]}  h4 {[%clk 0:00:49]} 0-1


[Site "https://www.chess.com"]

[Event "Titled Tuesday Blitz April 18 Late 2023"]
[White "Leenhouts, Koen"]
[Black "Hauge, Lars Oskar"]
[WhiteFideId "1008439"]
[BlackFideId "1509276"]
[WhiteElo "2409"]
[BlackElo "2431"]
[Result "1-0"]
[Round "02"]
[TimeControl "180+2"]
[Date "2023.04.18"]
[WhiteClock "0:00:26"]
[BlackClock "0:01:26"]

1. c4 {[%clk 0:03:00]}  e5 {[%clk 0:02:59]} 2. Nc3 {[%clk 0:03:00]}  Nc6 {[%clk 0:02:57]} 3. g3 {[%clk 0:03:00]}  g6 {[%clk 0:02:55]} 4. Bg2 {[%clk 0:03:00]}  Bg7 {[%clk 0:02:53]} 5. e4 {[%clk 0:02:58]}  Nge7 {[%clk 0:02:52]} 6. Nge2 {[%clk 0:02:58]}  d6 {[%clk 0:02:50]} 7. d3 {[%clk 0:02:56]}  h5 {[%clk 0:02:50]} 8. h3 {[%clk 0:02:52]}  Nd4 {[%clk 0:02:43]} 9. Nxd4 {[%clk 0:02:49]}  exd4 {[%clk 0:02:43]} 10. Ne2 {[%clk 0:02:50]}  Be6 {[%clk 0:02:38]} 11. b4 {[%clk 0:02:42]}  Qd7 {[%clk 0:02:38]} 12. Nf4 {[%clk 0:02:21]}  c5 {[%clk 0:02:35]} 13. b5 {[%clk 0:02:11]}  O-O {[%clk 0:02:31]} 14. O-O {[%clk 0:02:02]}  a6 {[%clk 0:02:30]} 15. b6 {[%clk 0:01:57]}  Nc6 {[%clk 0:02:27]} 16. Nxe6 {[%clk 0:01:47]}  fxe6 {[%clk 0:02:27]} 17. Bg5 {[%clk 0:01:41]}  Rf7 {[%clk 0:02:27]} 18. f4 {[%clk 0:01:35]}  Raf8 {[%clk 0:02:26]} 19. a4 {[%clk 0:01:21]}  Bf6 {[%clk 0:02:25]} 20. Bh6 {[%clk 0:01:16]}  Bg7 {[%clk 0:02:25]} 21. Bg5 {[%clk 0:01:17]}  Kh7 {[%clk 0:02:23]} 22. a5 {[%clk 0:01:14]}  Bh6 {[%clk 0:02:23]} 23. Bxh6 {[%clk 0:01:13]}  Kxh6 {[%clk 0:02:23]} 24. Qd2 {[%clk 0:01:13]}  Kg7 {[%clk 0:02:23]} 25. Rf2 {[%clk 0:01:11]}  Rf6 {[%clk 0:02:14]} 26. Raf1 {[%clk 0:01:11]}  e5 {[%clk 0:02:07]} 27. f5 {[%clk 0:01:08]}  Ne7 {[%clk 0:01:43]} 28. g4 {[%clk 0:01:07]}  hxg4 {[%clk 0:01:42]} 29. hxg4 {[%clk 0:01:08]}  gxf5 {[%clk 0:01:39]} 30. exf5 {[%clk 0:01:04]}  d5 {[%clk 0:01:37]} 31. Qg5+ {[%clk 0:01:03]}  Kf7 {[%clk 0:01:37]} 32. Qh5+ {[%clk 0:01:02]}  Kg8 {[%clk 0:01:36]} 33. Qg5+ {[%clk 0:01:01]}  Kf7 {[%clk 0:01:36]} 34. Qh5+ {[%clk 0:01:01]}  Kg7 {[%clk 0:01:36]} 35. cxd5 {[%clk 0:00:55]}  Nxd5 {[%clk 0:01:35]} 36. g5 {[%clk 0:00:50]}  Rd6 {[%clk 0:01:23]} 37. f6+ {[%clk 0:00:44]}  Nxf6 {[%clk 0:01:24]} 38. gxf6+ {[%clk 0:00:44]}  Rfxf6 {[%clk 0:01:25]} 39. Rxf6 {[%clk 0:00:34]}  Rxf6 {[%clk 0:01:25]} 40. Rxf6 {[%clk 0:00:34]}  Kxf6 {[%clk 0:01:26]} 41. Qh6+ {[%clk 0:00:33]}  Ke7 {[%clk 0:01:26]} 42. Qg7+ {[%clk 0:00:33]}  Kd6 {[%clk 0:01:27]} 43. Qf6+ {[%clk 0:00:27]}  Qe6 {[%clk 0:01:26]} 44. Qxe6+ {[%clk 0:00:26]}  Kxe6 {[%clk 0:01:26]} 45. Bxb7 {[%clk 0:00:26]} 1-0


[Site "https://www.chess.com"]

[Event "Titled Tuesday Blitz April 18 Late 2023"]
[White "Pein, Jonathan"]
[Black "Makridis, Dimitrios"]
[WhiteFideId "417092"]
[BlackFideId "25864475"]
[WhiteElo "2151"]
[BlackElo "2277"]
[Result "0-1"]
[Round "02"]
[TimeControl "180+2"]
[Date "2023.04.18"]
[WhiteClock "0:00:04"]
[BlackClock "0:01:08"]

1. e4 {[%clk 0:03:00]}  c5 {[%clk 0:02:59]} 2. Nf3 {[%clk 0:03:00]}  e6 {[%clk 0:02:57]} 3. d3 {[%clk 0:02:57]}  Nc6 {[%clk 0:02:55]} 4. g3 {[%clk 0:02:57]}  g6 {[%clk 0:02:54]} 5. d4 {[%clk 0:02:54]}  cxd4 {[%clk 0:02:48]} 6. Nxd4 {[%clk 0:02:55]}  d5 {[%clk 0:02:49]} 7. Nxc6 {[%clk 0:02:50]}  bxc6 {[%clk 0:02:48]} 8. Bg2 {[%clk 0:02:48]}  Bg7 {[%clk 0:02:47]} 9. O-O {[%clk 0:02:47]}  Nf6 {[%clk 0:02:48]} 10. exd5 {[%clk 0:02:45]}  cxd5 {[%clk 0:02:48]} 11. c4 {[%clk 0:02:42]}  O-O {[%clk 0:02:48]} 12. Nc3 {[%clk 0:02:41]}  Bb7 {[%clk 0:02:47]} 13. Bg5 {[%clk 0:02:39]}  Rc8 {[%clk 0:02:40]} 14. cxd5 {[%clk 0:02:38]}  exd5 {[%clk 0:02:31]} 15. Qd4 {[%clk 0:02:01]}  h6 {[%clk 0:02:28]} 16. Bxf6 {[%clk 0:01:56]}  Bxf6 {[%clk 0:02:29]} 17. Qxa7 {[%clk 0:01:56]}  Ba8 {[%clk 0:02:26]} 18. Rad1 {[%clk 0:01:48]}  d4 {[%clk 0:02:25]} 19. Ne4 {[%clk 0:01:36]}  Bg7 {[%clk 0:02:22]} 20. b3 {[%clk 0:01:32]}  Bd5 {[%clk 0:02:06]} 21. Rd2 {[%clk 0:01:25]}  f5 {[%clk 0:01:50]} 22. Nc5 {[%clk 0:01:13]}  Rf7 {[%clk 0:01:49]} 23. Qa6 {[%clk 0:00:38]}  Rxc5 {[%clk 0:01:44]} 24. Qxg6 {[%clk 0:00:37]}  Bxg2 {[%clk 0:01:42]} 25. Kxg2 {[%clk 0:00:38]}  Qd5+ {[%clk 0:01:41]} 26. Kg1 {[%clk 0:00:39]}  Rc6 {[%clk 0:01:42]} 27. Qh5 {[%clk 0:00:38]}  Qe6 {[%clk 0:01:36]} 28. Re2 {[%clk 0:00:34]}  Qg6 {[%clk 0:01:35]} 29. Re8+ {[%clk 0:00:25]}  Kh7 {[%clk 0:01:35]} 30. Qxg6+ {[%clk 0:00:24]}  Kxg6 {[%clk 0:01:33]} 31. Rb8 {[%clk 0:00:23]}  Rd7 {[%clk 0:01:32]} 32. Rd1 {[%clk 0:00:23]}  d3 {[%clk 0:01:32]} 33. Re8 {[%clk 0:00:19]}  d2 {[%clk 0:01:32]} 34. Kf1 {[%clk 0:00:11]}  Kf7 {[%clk 0:01:29]} 35. Re3 {[%clk 0:00:10]}  Rc2 {[%clk 0:01:27]} 36. Ke2 {[%clk 0:00:10]}  Rxa2 {[%clk 0:01:25]} 37. Rd3 {[%clk 0:00:09]}  Re7+ {[%clk 0:01:24]} 38. Kf3 {[%clk 0:00:09]}  Rb7 {[%clk 0:01:15]} 39. R1xd2 {[%clk 0:00:09]}  Rxd2 {[%clk 0:01:15]} 40. Rxd2 {[%clk 0:00:10]}  Rxb3+ {[%clk 0:01:14]} 41. Kf4 {[%clk 0:00:09]}  Ke6 {[%clk 0:01:14]} 42. Re2+ {[%clk 0:00:09]}  Kf6 {[%clk 0:01:15]} 43. Rc2 {[%clk 0:00:09]}  Rb4+ {[%clk 0:01:14]} 44. Kf3 {[%clk 0:00:09]}  Bf8 {[%clk 0:01:11]} 45. Rc6+ {[%clk 0:00:07]}  Kf7 {[%clk 0:01:11]} 46. h3 {[%clk 0:00:05]}  h5 {[%clk 0:01:07]} 47. Rc7+ {[%clk 0:00:04]}  Ke6 {[%clk 0:01:05]} 48. Rh7 {[%clk 0:00:03]}  h4 {[%clk 0:01:05]} 49. Rxh4 {[%clk 0:00:03]}  Rxh4 {[%clk 0:01:04]} 50. gxh4 {[%clk 0:00:04]}  Kf6 {[%clk 0:01:05]} 51. Kf4 {[%clk 0:00:04]}  Bd6+ {[%clk 0:01:06]} 52. Kf3 {[%clk 0:00:04]}  Kg6 {[%clk 0:01:06]} 53. Ke3 {[%clk 0:00:03]}  Kh5 {[%clk 0:01:07]} 54. Kf3 {[%clk 0:00:04]}  Kxh4 {[%clk 0:01:07]} 55. Kg2 {[%clk 0:00:05]}  Be5 {[%clk 0:01:07]} 56. Kf3 {[%clk 0:00:04]}  Kxh3 {[%clk 0:01:06]} 57. Ke3 {[%clk 0:00:05]}  Kg2 {[%clk 0:01:07]} 58. Ke2 {[%clk 0:00:04]}  f4 {[%clk 0:01:07]} 59. Ke1 {[%clk 0:00:05]}  f3 {[%clk 0:01:07]} 60. Kd1 {[%clk 0:00:04]}  Kxf2 {[%clk 0:01:08]} 0-1


[Site "https://www.chess.com"]